Cogmind - Beta 12 @@@ ROGUE MODE // 2024.01.20 @ 17:21:38 Player: UberDoot Result: Destroyed by G-67 Veteran with Plasma Rifle Performance ------------- Evolutions (4) 2000 Regions Visited (9) 1800 Robots Destroyed (169) 845 Value Destroyed (7270) 7270 Prototype IDs (7) 140 Alien Tech Used (0) 0 Bonus (3131) 3131 TOTAL SCORE: 15186 Bonus ------- High Alert Combat Kills 1297 Follower Combat Kills 489 Entered Garrisons 400 Used RIF Installer 1000 Friendly Fire -55 Cogmind --------- Core Integrity 0/850 Matter 165/300 Energy 74/100 System Corruption 21% Temperature Critical (583) Movement Core (1550) Ox30 Location -6/Factory Parts ------- > --- POWER (1) -------- (None) > --- PROPULSION (4) --- (None) > --- UTILITY (7) ------ Huge Storage Unit Relay Coupler [Hunter] (19) > --- WEAPON (3) ------- Flak Gun Bore Cannon > --- INVENTORY (25) --- Light Treads Light Treads Large Storage Unit Compact Matter Pod (0) Improved Sensor Array Improved Actuator Array Transmission Jammer Reactive Plating Reactive Plating Improved Hardlight Generator Relay Coupler [NC] (30) Relay Coupler [Grunt] (33) Relay Coupler [Sentry] (22) Relay Coupler [Sentry] (20) Relay Coupler [Demolisher] (25) Relay Coupler [Heavy] (14) Relay Coupler [Behemoth] (8) Proton Cannon Enhanced Autogun Enhanced Autogun Missile Launcher Remote Datajack Remote Datajack Segregator Peak State ------------ > --- POWER ------------ Micro Nuclear Core > --- PROPULSION ------- Light Treads Light Treads Light Treads Light Treads > --- UTILITY ---------- Huge Storage Unit Improved Sensor Array Improved Signal Interpreter Improved Actuator Array Hardened Medium Armor Plating Relay Coupler [Brawler] Relay Coupler [Hunter] > --- WEAPON ----------- Enhanced Autogun Flak Gun Segregator > --- INVENTORY -------- Light Treads Light Treads Large Storage Unit Improved Sensor Array Transmission Jammer Reactive Plating Reactive Plating Reactive Plating Improved Hardlight Generator Relay Coupler [NC] Relay Coupler [Grunt] Relay Coupler [Sentry] Relay Coupler [Sentry] Relay Coupler [Demolisher] Relay Coupler [Heavy] Relay Coupler [Behemoth] Enhanced Autogun Enhanced Autogun Flak Gun Bore Cannon Missile Launcher Remote Datajack Remote Datajack [Rating: 52] Favorites ----------- Power Reinforced Ion Engine Engine Reinforced Ion Engine Power Core Micro Nuclear Core Propulsion Armored Treads Treads Armored Treads Leg Aluminum Leg Wheel Armored Wheel Hover Unit Gravmag System Utility Huge Storage Unit Device Seismic Detector Storage Huge Storage Unit Processor Improved Signal Interpreter Hackware Relay Coupler [Brawler] Protection Improved Light Armor Plating Weapon Heavy Assault Rifle Energy Gun Field Laser Energy Cannon Beam Cannon Ballistic Gun Heavy Assault Rifle Ballistic Cannon Gauss Cannon Launcher Missile Launcher Special Weapon Remote Datajack Impact Weapon Heavy Flail Slashing Weapon Segregator Build | -11 -10 -9 -9 -8 -8 -8 -7 -7 -6 ------- Run | Jun Mat Mat Min Mat Gar Mat Fac Gar Fac Slots Evolved 8 | . . 2 . 2 . . 2 . 2 Power . | . . . . . . . . . . Propulsion 2 | . . 1 . 1 . . . . . Utility 5 | . . 1 . 1 . . 1 . 2 Weapon 1 | . . . . . . . 1 . . Parts Attached 232 | 6 16 36 3 20 48 56 5 33 9 Power 17 | 1 3 3 . 1 3 3 . 2 1 Engine 14 | 1 3 3 . 1 3 2 . 1 . Core 3 | . . . . . . 1 . 1 1 Reactor . | . . . . . . . . . . Propulsion 68 | 2 4 16 . 3 11 23 . 9 . Treads 27 | . . 10 . 3 4 3 . 7 . Leg 17 | 2 4 3 . . 1 7 . . . Wheel 16 | . . . . . 6 8 . 2 . Hover 8 | . . 3 . . . 5 . . . Flight . | . . . . . . . . . . Utility 47 | 2 1 7 1 5 6 15 2 4 4 Device 17 | 1 . 3 . 2 3 5 1 . 2 Storage 3 | 1 1 . 1 . . . . . . Processor 3 | . . 1 . 1 1 . . . . Hackware 6 | . . . . . 2 2 . 2 . Protection 18 | . . 3 . 2 . 8 1 2 2 Artifact . | . . . . . . . . . . Weapon 100 | 1 8 10 2 11 28 15 3 18 4 Energy Gun 33 | 1 5 2 . 4 9 7 1 3 1 Energy Cannon 6 | . 2 . . . 2 1 . 1 . Ballistic Gun 16 | . . 4 1 2 . . 2 5 2 Ballistic Cannon 10 | . . 2 . 1 3 2 . 1 1 Launcher 15 | . . . 1 3 7 2 . 2 . Special Weapon 8 | . . . . . 5 2 . 1 . Impact Weapon 4 | . . 1 . . . 1 . 2 . Slashing Weapon 8 | . 1 1 . 1 2 . . 3 . Piercing Weapon . | . . . . . . . . . . Special Melee Weapon . | . . . . . . . . . . Unidentified Prototypes 3 | . . . . 1 . 2 . . . Parts Lost 28 | . 1 1 . 2 6 3 . 2 13 Power 5 | . . . . 1 1 . . 1 2 Propulsion 10 | . . . . 1 2 2 . 1 4 Utility 8 | . . 1 . . 1 1 . . 5 Weapon 5 | . 1 . . . 2 . . . 2 Highest Loss Streak 11 | . 1 1 . 1 4 2 . 1 11 To Critical Strikes 1 | . . . . . . . . . 1 Average Slot Usage (%) 98 | . 99 99 100 99 96 93 98 99 88 Engine 8 | . 14 10 11 9 8 7 . 5 . Treads 21 | . . 27 33 35 21 7 . 21 25 Leg 5 | . 27 5 . . . 4 7 1 . Wheel 4 | . . . . . 11 17 23 6 . Device 8 | . 14 12 . 8 9 3 15 6 5 Storage 9 | . 14 11 11 9 9 9 7 7 6 Processor 6 | . . . 11 9 11 9 7 7 6 Hackware 2 | . . . . . 4 3 . 7 9 Protection 6 | . . 8 11 8 2 7 7 7 8 Energy Gun 8 | . 18 5 11 9 8 11 12 2 4 Energy Cannon 2 | . 9 . . . 5 . . . . Ballistic Gun 6 | . . 10 11 7 . . 8 12 8 Ballistic Cannon 1 | . . 5 . . 1 4 . 1 . Naked Turns . | . . . . . . . . . . Heaviest Build 123 | 13 32 41 99 104 109 115 108 123 115 Greatest Support 82 | 20 20 66 62 82 80 52 40 80 80 Greatest Overweight (x) 35 | . 3 12 1 1 33 35 2 5 1 Average Overweight (x) 1 | . . . . 1 3 3 2 1 1 Largest Inventory Capacity 25 | 8 15 15 25 25 25 25 25 25 25 Average Capacity 21 | 7 13 15 19 25 25 25 25 25 25 Most Carried 25 | 8 15 15 16 25 25 25 25 25 25 Average Carried 20 | 5 13 14 15 23 24 24 24 24 24 Final Capacity 25 | 8 15 15 25 25 25 25 25 25 25 Final Carried 25 | 8 15 15 16 23 25 25 25 24 24 Class Distribution -------------------- 55% | Mutant 27% | Bothacker-Mutant 10% | Scavenger-Mutant 3% | Scavenger-Skirmisher Dominant Class ---------------- Mutant | -10/Materials Mutant | -9/Materials Mutant | -9/Mines Mutant | -8/Materials Mutant | -8/Garrison Bothacker-Mutant | -8/Materials Bothacker-Skirmisher | -7/Factory Bothacker-Mutant | -7/Garrison Bothacker-Mutant | -6/Factory Resources | -11 -10 -9 -9 -8 -8 -8 -7 -7 -6 ----------- Run | Jun Mat Mat Min Mat Gar Mat Fac Gar Fac Matter Collected 4706 | 260 155 1043 201 350 967 822 . 805 103 Remotely . | . . . . . . . . . . Salvage Created 5478 | 109 684 1232 42 760 1074 712 . 716 149 Parts 311 | 6 46 81 6 52 37 44 . 34 5 Haulers Intercepted 7 | . 2 . . 2 . 3 . . . Recyclers Shooed 4 | 1 . 2 . 1 . . . . . Parts Field Recycled . | . . . . . . . . . . Retrieved Matter . | . . . . . . . . . . Parts Self-Destructed . | . . . . . . . . . . Prevented . | . . . . . . . . . . Kills | -11 -10 -9 -9 -8 -8 -8 -7 -7 -6 ------- Run | Jun Mat Mat Min Mat Gar Mat Fac Gar Fac Combat Hostiles Destroyed 143 | . 14 30 5 25 27 20 . 19 3 Guns 80 | . 8 20 3 17 6 10 . 13 3 Cannons 27 | . 4 10 . 1 8 2 . 2 . AOE 34 | . 2 . 2 7 12 7 . 4 . Classes Destroyed 17 | 2 5 3 . 1 2 3 . 1 . Worker 3 | . 2 . . . . 1 . . . Builder 3 | . . . . . . 3 . . . Tunneler 2 | 1 . . . 1 . . . . . Hauler 7 | . 2 . . 2 . 3 . . . Recycler 2 | 1 . . . 1 . . . . . Mechanic 1 | . . . . . . 1 . . . Operator 1 | . . 1 . . . . . . . Watcher 7 | . 2 2 . 1 . 2 . . . Swarmer 42 | . 3 6 5 15 . 7 . 6 . Grunt 58 | . 11 13 . 4 16 10 . 4 . Brawler 6 | . . 1 . . 2 1 . 1 1 Duelist 4 | . . . . . 1 1 . 1 1 Protector 1 | . . . . . . 1 . . . Sentry 22 | . . 10 . 4 4 . . 4 . Specialist 2 | . . . . 2 . . . . . Hunter 2 | . . . . . . . . 2 . Programmer 6 | . . . . . 4 . . 1 1 Best Kill Streak 10 | 1 6 4 3 9 10 8 . 3 1 Combat Bots Only 10 | . 3 4 3 8 10 4 . 3 1 Max Kills in Single Turn 3 | 1 2 1 1 2 3 3 . 3 1 Gunslinging 1 | . . . . . 1 . . . . Exploded 3 | . 1 . 1 2 3 2 . 3 . Melee . | . . . . . . . . . . Uniques/NPCs Destroyed . | . . . . . . . . . . Combat | -11 -10 -9 -9 -8 -8 -8 -7 -7 -6 -------- Run | Jun Mat Mat Min Mat Gar Mat Fac Gar Fac Damage Taken 9581 | . 411 1453 397 1290 1720 1178 . 929 2203 Core 1775 | . 117 180 41 93 303 103 . 88 850 Absorbed by Shields 10 | . . . . 10 . . . . . Redirected to Shielding 9 | . . . . . . 9 . . . Regen/Repaired (Parts) 362 | . . 94 . 207 . 61 . . . Core Remaining (%) 58 | 100 53 . 44 . . 9 . 87 . Volleys Fired 452 | 11 43 112 15 68 64 69 . 49 21 Largest 3 | 1 2 2 2 2 2 2 . 3 3 Hottest 171 | 50 125 86 93 118 128 126 . 171 160 Shots Fired 859 | 11 85 220 26 126 110 128 . 102 51 Gun 643 | 11 62 175 24 113 46 84 . 80 48 Cannon 157 | . 23 45 . 5 42 26 . 13 3 Launcher 42 | . . . 2 8 20 7 . 5 . Special 17 | . . . . . 2 11 . 4 . Kinetic 345 | . . 164 13 42 10 25 . 59 32 Thermal 435 | 11 65 56 11 76 78 85 . 34 19 Explosive 42 | . . . 2 8 20 7 . 5 . Electromagnetic 20 | . 20 . . . . . . . . Robot Hit Streak 18 | 3 8 14 3 13 18 13 . 12 7 Robot Miss Streak 7 | 2 3 6 2 3 3 5 . 7 6 Penetration Max 1 | . . . . . . 1 . . . Secondary Targets 4 | . 1 . 1 . 1 . . . 1 Max Gunslinging Chain 1 | . 1 . 1 . 1 . . . 1 Shots Hit Robots 577 | 6 53 153 12 86 84 74 . 73 36 Core Hits 327 | 3 26 51 8 39 62 46 . 70 22 Critical Kills . | . . . . . . . . . . Critical Parts Destroyed 1 | . . . . . . . . 1 . Critical Strikes 16 | . . 3 1 1 7 2 . 1 1 Burn 7 | . . 3 1 . 2 . . . 1 Destroy 1 | . . . . . . . . 1 . Blast 6 | . . . . 1 3 2 . . . Sever 2 | . . . . . 2 . . . . Melee Attacks 55 | . 2 4 . 1 17 1 . 23 7 Thermal 28 | . . . . . . . . 21 7 Impact 4 | . . 1 . . . 1 . 2 . Slashing 23 | . 2 3 . 1 17 . . . . Piercing . | . . . . . . . . . . Sneak Attacks . | . . . . . . . . . . Combat Hostiles . | . . . . . . . . . . Follow-up Attacks . | . . . . . . . . . . Damage Inflicted 15312 | 74 1040 2428 351 2451 4079 2573 . 1473 843 Guns 7447 | 74 571 1782 230 1360 677 822 . 1117 814 Cannons 2311 | . 271 613 . 60 727 439 . 172 29 Explosions 4711 | . 198 . 121 1021 1875 1312 . 184 . Melee 833 | . . 33 . . 800 . . . . Ramming 10 | . . . . 10 . . . . . Kinetic 4139 | . . 1798 129 407 225 439 . 644 497 Thermal 5635 | 74 858 597 101 1013 1179 822 . 645 346 Explosive 4513 | . . . 121 1021 1875 1312 . 184 . Electromagnetic 182 | . 182 . . . . . . . . Impact . | . . . . . . . . . . Slashing 833 | . . 33 . . 800 . . . . Piercing . | . . . . . . . . . . Highest Corruption 21 | . . 8 8 . 3 3 . 2 21 Average Corruption 3 | . . 7 8 . 2 3 . 1 5 Corruption Purged . | . . . . . . . . . . Corruption Blocked . | . . . . . . . . . . Effects 152 | . . 46 27 . 22 32 . 18 7 Message Errors 32 | . . 15 2 . 4 6 . 3 2 Matter Fused 39 | . . 15 6 . 8 4 . 5 1 Heat Flow Errors 22 | . . 7 6 . 2 1 . 4 2 Energy Discharges 21 | . . 3 6 . 2 7 . 1 2 Parts Rejected 4 | . . 1 . . 1 2 . . . Parts Fused 1 | . . . 1 . . . . . . Data Loss (minor) 14 | . . 4 4 . . 4 . 2 . Data Loss (major) 8 | . . . 2 . 3 3 . . . Misfires 6 | . . . . . . 5 . 1 . Alerts 3 | . . . . . 1 . . 2 . Weapon Failures 2 | . . 1 . . 1 . . . . Overload Shots . | . . . . . . . . . . Overflow Damage 242 | . 18 9 15 62 46 92 . . . Projectiles 27 | . 14 9 . . . 4 . . . Explosions 199 | . 4 . 15 62 30 88 . . . Melee 16 | . . . . . 16 . . . . Knockbacks 11 | . . 4 . . . 4 . 2 1 Impact . | . . . . . . . . . . Kinetic 11 | . . 4 . . . 4 . 2 1 Secondary . | . . . . . . . . . . Self-Inflicted Damage 246 | . 31 . 20 . 114 35 . 46 . Shots 9 | . 1 . 2 . 4 1 . 1 . Rammed 2 | . . . . 2 . . . . . Targets Rammed 2 | . . . . 2 . . . . . Kicked . | . . . . . . . . . . Crushed . | . . . . . . . . . . Highest Temperature 837 | 40 339 341 502 97 494 324 . 359 837 Average Temperature 118 | 15 100 82 143 37 155 108 . 113 392 Received Heat Transfer 2701 | . 171 591 . 252 675 585 . 219 208 Effects 42 | . 1 4 4 . 3 . . 6 24 Shutdowns 5 | . . 1 1 . . . . 1 2 Energy Bleed 8 | . 1 1 . . 1 . . 1 4 Interference 13 | . . 2 3 . 2 . . 3 3 Matter Decay 1 | . . . . . . . . . 1 Short Circuit 2 | . . . . . . . . 1 1 Damage (major) 8 | . . . . . . . . . 8 Damage (core) 5 | . . . . . . . . . 5 Siege Activations . | . . . . . . . . . . Robots Corrupted . | . . . . . . . . . . Combat Hostiles . | . . . . . . . . . . Parts Fried . | . . . . . . . . . . Impact Corruptions . | . . . . . . . . . . Robots Melted 2 | . . . . . 1 1 . . . Combat Hostiles 2 | . . . . . 1 1 . . . Parts Melted 13 | . 1 4 . 1 2 2 . 2 1 Heat Transferred 11879 | 222 1730 1776 296 1998 2013 1775 . 1294 775 Parts Sabotaged . | . . . . . . . . . . Parts Stolen . | . . . . . . . . . . Parts Stripped . | . . . . . . . . . . Power Chain Reactions 3 | . 3 . . . . . . . . Missiles Intercepted . | . . . . . . . . . . Alert | -11 -10 -9 -9 -8 -8 -8 -7 -7 -6 ------- Run | Jun Mat Mat Min Mat Gar Mat Fac Gar Fac Peak Influence 1988 | 10 257 661 351 562 1502 927 382 1988 1085 Initial 1043 | . 6 4 253 17 365 731 382 267 1043 Average 507 | 3 80 229 228 114 972 759 382 1016 1005 Maximum Alert Level 5 | . 1 2 1 2 4 3 1 5 3 Low Security (%) 40 | 100 93 57 56 81 . . . . . Level 1 10 | . 6 19 43 13 1 . 100 2 . Level 2 15 | . . 23 . 4 25 13 . 32 . Level 3 22 | . . . . . 41 86 . 22 100 Level 4 8 | . . . . . 32 . . 24 . Level 5 3 | . . . . . . . . 18 . High Security . | . . . . . . . . . . Max Security . | . . . . . . . . . . Squads Dispatched 20 | . 5 4 . 4 . 5 . . 2 Investigation 6 | . 1 3 . 1 . 1 . . . Extermination 1 | . . . . . . . . . 1 Reinforcement 7 | . 4 . . 1 . 2 . . . Assault 4 | . . 1 . . . 2 . . 1 Garrison 2 | . . . . 2 . . . . . Intercept . | . . . . . . . . . . Searches Triggered . | . . . . . . . . . . Construction Impeded 1 | . . . . . . 1 . . . Haulers Reinforced . | . . . . . . . . . . Active Scanning Responses . | . . . . . . . . . . Cargo Convoy Interrupts . | . . . . . . . . . . Stealth | -11 -10 -9 -9 -8 -8 -8 -7 -7 -6 --------- Run | Jun Mat Mat Min Mat Gar Mat Fac Gar Fac Distress Signals 6 | . . 4 . . . 2 . . . Communications Jammed . | . . . . . . . . . . Distress Signals . | . . . . . . . . . . Times Spotted 234 | . 22 48 5 44 32 41 . 34 8 Peak Tracking Total 9 | . 3 4 4 6 6 5 . 9 6 Tactical Retreats 15 | . 1 3 . 3 . . . 8 . Traps | -11 -10 -9 -9 -8 -8 -8 -7 -7 -6 ------- Run | Jun Mat Mat Min Mat Gar Mat Fac Gar Fac Traps Triggered 25 | . 2 7 1 1 6 . . 7 1 Indirectly . | . . . . . . . . . . Trap Hack Attempts . | . . . . . . . . . . Triggered . | . . . . . . . . . . Disarmed . | . . . . . . . . . . Reprogrammed . | . . . . . . . . . . Reused . | . . . . . . . . . . Traps Extracted . | . . . . . . . . . . Installed . | . . . . . . . . . . Triggered . | . . . . . . . . . . Machines | -11 -10 -9 -9 -8 -8 -8 -7 -7 -6 ---------- Run | Jun Mat Mat Min Mat Gar Mat Fac Gar Fac Machines Disabled 25 | . 1 3 . 4 7 2 . 7 1 Max in Single Turn 2 | . 1 1 . 2 1 1 . 1 1 Garrison Relay 10 | . . . . . 6 . . 4 . Machines Repaired . | . . . . . . . . . . Machines Sabotaged . | . . . . . . . . . . Overloaded Fab Kills . | . . . . . . . . . . Hacking | -11 -10 -9 -9 -8 -8 -8 -7 -7 -6 --------- Run | Jun Mat Mat Min Mat Gar Mat Fac Gar Fac Machines Accessed 37 | . 4 12 1 8 2 4 1 4 1 Terminals 23 | . 2 8 . 5 2 2 . 4 . Fabricators . | . . . . . . . . . . Repair Stations 3 | . . 1 . 1 . 1 . . . Recycling Units 4 | . 2 2 . . . . . . . Scanalyzers 4 | . . 1 . 1 . 1 . . 1 Garrison Access 2 | . . . . 1 . . 1 . . Total Hacks 110 | . 12 38 1 21 4 22 1 8 3 Successful 60 | . 6 19 1 11 1 16 1 3 2 Failed 49 | . 6 18 . 10 3 6 . 5 1 Catastrophic 11 | . . 4 . 3 1 . . 3 . Database Lockouts 1 | . . 1 . . . . . . . Manual 22 | . 4 9 . 5 . 4 . . . Terminals 64 | . 10 26 . 12 4 4 . 8 . Fabricators . | . . . . . . . . . . Repair Stations 14 | . . 6 . 5 . 3 . . . Recycling Units 4 | . 2 2 . . . . . . . Scanalyzers 25 | . . 4 . 3 . 15 . . 3 Garrison Access 2 | . . . . 1 . . 1 . . Terminal Hacks 26 | . 4 10 1 5 1 2 . 3 . Record 1 | . 1 . . . . . . . . Part Schematic 1 | . . 1 . . . . . . . Robot Analysis 5 | . 2 1 . 2 . . . . . Prototype ID Bank 2 | . . 2 . . . . . . . Open Door 3 | . . . 1 . 1 . . 1 . Emergency Access Points 2 | . . 1 . . . . . 1 . Alert Level 2 | . 1 1 . . . . . . . Unreport Threat 1 | . . . . . . 1 . . . Locate Traps 2 | . . 2 . . . . . . . Transport Status 1 | . . . . 1 . . . . . Garrison Status 1 | . . . . 1 . . . . . Hauler Manifests 4 | . . 2 . 1 . 1 . . . Security Stations 1 | . . . . . . . . 1 . Fabricator Hacks . | . . . . . . . . . . Repair Station Hacks 9 | . . 3 . 4 . 2 . . . Scan Component 5 | . . 2 . 2 . 1 . . . Repair 4 | . . 1 . 2 . 1 . . . Recycling Unit Hacks 4 | . 2 2 . . . . . . . Retrieve Components 4 | . 2 2 . . . . . . . Scanalyzer 19 | . . 4 . 1 . 12 . . 2 Insert Component 10 | . . 2 . 1 . 6 . . 1 Analyze 9 | . . 2 . . . 6 . . 1 Garrison Access Hacks 2 | . . . . 1 . . 1 . . Unlock Access 2 | . . . . 1 . . 1 . . Unauthorized Hacks . | . . . . . . . . . . Terminals . | . . . . . . . . . . Fabricators . | . . . . . . . . . . Repair Stations . | . . . . . . . . . . Recycling Units . | . . . . . . . . . . Scanalyzers . | . . . . . . . . . . Garrison Access . | . . . . . . . . . . Data Cores Recovered 1 | . . 1 . . . . . . . Used 1 | . . 1 . . . . . . . Hacking Detections 27 | . 2 10 . 5 2 4 . 3 1 Full Trace Events 6 | . . 2 . . 1 1 . 2 . Feedback Events 1 | . . . . . . . . 1 . Corruption 1 | . . . . . . . . 1 . Feedback Blocked . | . . . . . . . . . . Robot Schematics Acquired . | . . . . . . . . . . Robots Built . | . . . . . . . . . . Authchips . | . . . . . . . . . . Time . | . . . . . . . . . . Total Robot Build Rating . | . . . . . . . . . . Part Schematics Acquired 9 | . . 3 . . . 5 . . 1 Parts Built . | . . . . . . . . . . Authchips . | . . . . . . . . . . Time . | . . . . . . . . . . Total Part Build Rating . | . . . . . . . . . . Parts Repaired 4 | . . 1 . 2 . 1 . . . Time 140 | . . 32 . 70 . 38 . . . Parts Recycled . | . . . . . . . . . . Recycled Matter . | . . . . . . . . . . Retrieved Matter . | . . . . . . . . . . Retrieved Components 37 | . 18 19 . . . . . . . Parts Scanalyzed 9 | . . 2 . 1 . 5 . . 1 Part Schematics Acquired 8 | . . 2 . . . 5 . . 1 Parts Damaged 1 | . . . . . . 1 . . . Bothacking | -11 -10 -9 -9 -8 -8 -8 -7 -7 -6 ------------ Run | Jun Mat Mat Min Mat Gar Mat Fac Gar Fac Used RIF Installer 2 | . . . . . 1 . . 1 . Program Shield 1 | . . . . . . . . 1 . Robots Hacked 9 | . . . . . 2 5 . 2 . Non-combat . | . . . . . . . . . . Combat 9 | . . . . . 2 5 . 2 . Robot Hacks Applied 10 | . . . . . 2 6 . 2 . parse_system 2 | . . . . . . 1 . 1 . scatter_targeting 1 | . . . . . . 1 . . . go_dormant 1 | . . . . . . 1 . . . streamctrl_high 1 | . . . . . . 1 . . . formatsys_high 5 | . . . . . 2 2 . 1 . Relay Couplers Released 36 | . . . . . 19 . . 17 . Machine Destruction 36 | . . . . . 19 . . 17 . Attached 6 | . . . . . 2 2 . 2 . Fabnet Peak Effective % . | . . . . . . . . . . Robots Rewired 11 | . . . . . . . . 11 . Allies Hacked 1 | . . . . . 1 . . . . Hacks Repelled . | . . . . . . . . . . Allies | -11 -10 -9 -9 -8 -8 -8 -7 -7 -6 -------- Run | Jun Mat Mat Min Mat Gar Mat Fac Gar Fac Total Allies 18 | . . . . . 3 3 . 12 . Largest Group 7 | . . . . . 2 2 . 7 . Highest-Rated Group 152 | . . . . . 46 32 . 152 . Highest-Rated Ally 39 | . . . . . 31 26 . 39 . Total Orders 2 | . . . . . . . . 2 . STAY 1 | . . . . . . . . 1 . FOLLOW 1 | . . . . . . . . 1 . Ally Attacks 83 | . . . . . 8 30 . 45 . Total Damage 1374 | . . . . . 141 522 . 711 . Kills 18 | . . . . . 2 6 . 10 . Allies Corrupted . | . . . . . . . . . . Allies Melted . | . . . . . . . . . . Intel | -11 -10 -9 -9 -8 -8 -8 -7 -7 -6 ------- Run | Jun Mat Mat Min Mat Gar Mat Fac Gar Fac Robot Analysis Total 5 | . 2 1 . 2 . . . . . Derelict Logs Recovered 1 | . . . 1 . . . . . . Drone Launches . | . . . . . . . . . . Drone Recoveries . | . . . . . . . . . . Exploration | -11 -10 -9 -9 -8 -8 -8 -7 -7 -6 ------------- Run | Jun Mat Mat Min Mat Gar Mat Fac Gar Fac Turns Passed 14566 | 122 1813 2523 919 2573 1766 1629 91 2567 563 Spaces Moved 6312 | 73 878 1231 454 891 762 769 65 1013 176 Core 12 | 5 . 1 . . 2 4 . . . Treads 3385 | . . 1025 454 891 171 . . 668 176 Legs 1159 | 68 878 205 . . . 8 . . . Wheels 1738 | . . . . . 589 739 65 345 . Hover 18 | . . . . . . 18 . . . Flight . | . . . . . . . . . . Fastest Speed 50 | 50 120 120 161 243 120 120 123 120 240 Average Speed 184 | 115 174 154 188 249 174 153 123 202 240 Slowest Speed 1800 | 120 330 650 241 250 1700 1800 123 560 240 Overloaded Moves . | . . . . . . . . . . Propulsion Burnouts . | . . . . . . . . . . Robots Hopped . | . . . . . . . . . . Cave-ins Triggered . | . . . . . . . . . . Exploration Rate (%) 49 | 4 95 86 85 54 57 38 1 71 3 Regions Visited 9 Branch Regions 1 Pre-discovered Areas . | . . . . . . . . . . Known Exits Taken 4 | . . . 1 1 . 1 1 . . Unknown Exits Taken 3 | 1 1 1 . . . . . . . Scrap Searched 1 | . . . 1 . . . . . . Spaces Dug 38 | . 1 2 15 1 16 2 . 1 . Terrain Destroyed 312 | . 14 3 15 58 122 74 . 24 2 Melee 6 | . 1 2 . 1 . 1 . 1 . Projectile 22 | . . 1 . 3 . 15 . 1 2 AOE 284 | . 13 . 15 54 122 58 . 22 . Terrain Rammed . | . . . . . . . . . . Walls Destroyed . | . . . . . . . . . . Machines Disabled . | . . . . . . . . . . Actions | -11 -10 -9 -9 -8 -8 -8 -7 -7 -6 --------- Run | Jun Mat Mat Min Mat Gar Mat Fac Gar Fac Total 8300 | 97 1070 1625 491 1116 1061 1101 78 1393 268 Wait 736 | . 95 182 16 86 78 128 . 105 46 Move 6301 | 72 877 1230 453 890 760 768 64 1011 176 Hop . | . . . . . . . . . . Pick Up 155 | 8 19 22 1 27 28 24 4 18 4 Fast Attach 92 | 6 7 16 . 6 12 30 1 11 3 Attach 51 | . 4 9 . 5 11 11 4 3 4 Detach 25 | . . 5 . 3 4 9 2 . 2 Swap 89 | . 5 11 3 9 25 15 . 19 2 Drop 179 | . 18 34 1 19 28 45 3 28 3 Fire 452 | 11 43 112 15 68 64 69 . 49 21 Melee 55 | . 2 4 . 1 17 1 . 23 7 Ram . | . . . . . . . . . . Kick . | . . . . . . . . . . Crush 2 | . . . . 2 . . . . . Escape Stasis 54 | . . . . . 34 . . 20 . Rewire 109 | . . . 2 . . 1 . 106 . Trap . | . . . . . . . . . . Miscellaneous . | . . . . . . . . . . Route ------- -11/Junkyard -10/Materials (discovered 4 exits: *Mat x3 / [*Min]) -9/Materials (discovered 3 exits: *Mat x2 / *Min) -9/Mines (discovered 2 exits: *Mat x2) -8/Materials (discovered 2 exits: *Fac / Gar) -8/Garrison (discovered 2 exits: *Mat x2) -8/Materials -7/Factory -7/Garrison (discovered 2 exits: *Fac x2) -6/Factory History --------- Turn | Location | Event 13 | -11/Junkyard | Discovered new exit (range 15) 123 | -11/Junkyard | Entered Materials 302 | -10/Materials | Build established: Mutant 418 | -10/Materials | Discovered new exit (range 5) 454 | -10/Materials | Discovered new exit (range 15) 797 | -10/Materials | Discovered new exit (range 16) 1011 | -10/Materials | Discovered new exit (range 16) 1936 | -10/Materials | Entered another Materials area 1936 | -9/Materials | Evolved 2 slots: Propulsion x1, Utility x1 2562 | -9/Materials | Discovered new exit (range 6) 2806 | -9/Materials | Central database locked down 2874 | -9/Materials | Discovered new exit (range 4) 3913 | -9/Materials | Discovered new exit (range 16) 3936 | -9/Materials | First assault squad dispatched 3991 | -9/Materials | Build established: Scavenger-Mutant 4174 | -9/Materials | Repaired Rnf. Ion Engine 4459 | -9/Materials | Entered Mines 4506 | -9/Mines | Identified exit to Materials 4577 | -9/Mines | Core integrity fell below 50% 4677 | -9/Mines | Build established: Mutant 4788 | -9/Mines | Met a Derelict who couldn't figure out how to use a Trap Extractor 5073 | -9/Mines | Discovered exit to Materials (range 15) 5378 | -9/Mines | Entered Materials 5378 | -8/Materials | Evolved 2 slots: Propulsion x1, Utility x1 5532 | -8/Materials | Repaired Imp. Light Armor Plating? 5592 | -8/Materials | Repaired Hvy. Assault Rifle? 6064 | -8/Materials | Discovered new exit (range 5) 7771 | -8/Materials | Garrison activated, responded to threat 7883 | -8/Materials | Destroyed 8 combat bots 7927 | -8/Materials | Identified exit to Garrison 7951 | -8/Materials | Entered Garrison 8128 | -8/Garrison | Triggered checkpoint 8177 | -8/Garrison | Lost 4 parts (1p2n1w) 8388 | -8/Garrison | Triggered checkpoint 8434 | -8/Garrison | Triggered checkpoint 8470 | -8/Garrison | Destroyed 10 combat bots 8694 | -8/Garrison | Triggered checkpoint 8731 | -8/Garrison | Installed Relay Interface Framework 8798 | -8/Garrison | Discovered new exit (range 8) 8822 | -8/Garrison | Identified exit to Materials 9032 | -8/Garrison | Triggered checkpoint 9034 | -8/Garrison | Core integrity fell below 50% 9045 | -8/Garrison | Garrison Relay disabled 9152 | -8/Garrison | Triggered checkpoint 9170 | -8/Garrison | Discovered exit to Materials (range 15) 9210 | -8/Garrison | Rescued a captive Derelict 9424 | -8/Garrison | Garrison Relay disabled 9427 | -8/Garrison | P-60 Hacker assimilated allied Defender 3a 9491 | -8/Garrison | Garrison Relay disabled 9499 | -8/Garrison | Garrison Relay disabled 9717 | -8/Garrison | Entered Materials 9717 | -8/Materials | Accompanied by 1 ally 9776 | -8/Materials | Build established: Bothacker-Mutant 10117 | -8/Materials | First assault squad dispatched 10489 | -8/Materials | Core integrity fell below 20% 11129 | -8/Materials | Repaired Missile Launcher 11310 | -8/Materials | Discovered new exit (range 10) 11345 | -8/Materials | Identified exit to Factory 11346 | -8/Materials | Entered Factory 11346 | -7/Factory | Evolved 2 slots: Utility x1, Weapon x1 11405 | -7/Factory | Identified exit to Garrison 11437 | -7/Factory | Entered Garrison 11441 | -7/Garrison | Triggered checkpoint 11456 | -7/Garrison | Triggered checkpoint 11482 | -7/Garrison | Triggered checkpoint 12280 | -7/Garrison | Triggered checkpoint 12285 | -7/Garrison | Triggered checkpoint 12300 | -7/Garrison | Triggered checkpoint 12315 | -7/Garrison | Triggered checkpoint 12686 | -7/Garrison | Learned Factory security intel 12695 | -7/Garrison | Discovered new exit (range 12) 12719 | -7/Garrison | Identified exit to Factory 12812 | -7/Garrison | Triggered checkpoint 12845 | -7/Garrison | Expanded RIF knowledge: Program Shield 12899 | -7/Garrison | Garrison Relay disabled 12978 | -7/Garrison | Triggered checkpoint 13181 | -7/Garrison | Garrison Relay disabled 13304 | -7/Garrison | Garrison Relay disabled 13646 | -7/Garrison | Triggered checkpoint 13688 | -7/Garrison | Discovered exit to Factory (range 11) 13813 | -7/Garrison | Garrison Relay disabled 14004 | -7/Garrison | Entered Factory 14004 | -6/Factory | Evolved 2 slots: Utility x2 14354 | -6/Factory | First assault squad dispatched 14549 | -6/Factory | Core integrity fell below 50% 14552 | -6/Factory | System corruption reached 10% 14565 | -6/Factory | Core integrity fell below 20% 14567 | -6/Factory | Destroyed by G-67 Veteran with Plasma Rifle Last Messages --------------- 14555_ L-41 Fighter destroyed. 14555_ HV Slug penetrates Wall. 14558_ K-01 Serf collects debris. 14559_ Overheating: Energy bleed (-4). 14559_ Plasma Rifle destroyed. 14559_ System corrupted by crushing effect (+4). 14560_ Overheating: System interference. 14560_ Bore Cannon temporarily disabled. 14561_ Overheating: Matter decay (-27). 14561_ Broken Lgt. Treads destroyed. 14562_ K-01 Serf collects debris. 14565_ Overheating: Bore Cannon damaged (-42). 14565_ Overheating: Huge Storage Unit damaged (-142). 14565_ Critical hit (Smash). 14565_ Imp. Signal Interpreter destroyed. 14565_ System corrupted by crushing effect (+4). 14565_ K-01 Serf collects debris. 14566_ U%ZG:&RW#,CO6%P/LXBEUIR=7DROCT#%C#G 14567_ Overheating: Core damaged (-136). 14567_ Critical hit (Burn: +50). Map ----- +----------------------------------------------------+ | | | | | | | | | | | | | ?????????????????????????????????????????????????? | | ?????????????????????????????????????????????????? | | ?????????????????????????????????????????????????? | | ????????????????????????????########?????????????? | | ????????????????????################?????????????? | | ????????????????????# # # ##?????????????? | | ????????????????????# ### ##?????????????? | | ????????????????????# # # ! ########???????? | | ????????????????????# ### # #???????? | | ????????????????????# """" + + # #???????? | | ????????????????????# """" # # # [! ######### | | ????????????????????# """" # # # [[! # | | ????????????????????# """" + + # [!! #"S | | ????????????????????# """" # # # # "" ![[ | | ????????????????????# """" # ###########+# "" ![ | | ????????????????????# # + ![ | | ????????????????????# # ########### # """ | | ????????????????????# # #?????????# # """ | | ??????????######+########### #??######## # """ | | ????????? @ R #??# # # | | ????????? b% i#### # ######### | | ????????? g + %+ ? | | ????????? k #### # ? | | ????????? ;#?# # ???????? | | ?????????? ######### # ## # ???????? | | ???????????????????# ########### ???????? | | ???????????????????# ????????? ???????? | | ???????????????????# ???????? ???????? | | ???????????????????# #???????+#???????? | | ???????????????????# #??????? ????????? | | ???????????????????# #????????????????? | | ???????????????????######## #????????????????? | | ??????????????????????????# #????????????????? | | ??????????????????????????# #????????????????? | | ??????????????????????????# #????????????????? | | ??????????????????????????? ?????????????????? | | ??????????????????????????? ??????????????????? | | ??????????????????????????? ??????????????????? | | ?????????????????????????????????????????????????? | | ?????????????????????????????????????????????????? | | ?????????????????????????????????????????????????? | | ?????????????????????????????????????????????????? | | ?????????????????????????????????????????????????? | | ?????????????????????????????????????????????????? | +----------------------------------------------------+ Best States ------------- Heat Dissipation 61 Energy Generation 18 Energy Capacity 290 Matter Stores 300 Matter Capacity 300 Sight Range 16 Robot Scan Range 15 Terrain Scan Density 10 Base Temperature (-) 100 Armor Coverage 600 Resistance: KI 20 Power Shielding 66 Evasion (%) 55 Targeting Accuracy 8 Recoil Reduction 4 Relay Coupler Types 2 Relay Coupler Value 35 Item Schematics ----------------- Huge Storage Unit | -9/Materials | Hacked Imp. Light Armor Plating | -9/Materials | Scanalyzed Adv. Treads | -9/Materials | Scanalyzed Remote Datajack | -8/Materials | Scanalyzed Gravmag System | -8/Materials | Scanalyzed Lgt. Armor Plating | -8/Materials | Scanalyzed Reaction Control System | -8/Materials | Scanalyzed Lrn. Tractor Beam | -8/Materials | Scanalyzed Imp. Sensor Array | -6/Factory | Scanalyzed Robot Schematics ------------------ None Fabricated ------------ Nothing Alien Tech Used ----------------- None Achievements -------------- Assimilation Complete Challenges ------------ None Game ------ Seed LightpackWardroneMinigun Manual? 0 Play Time 02:42:44 Cumulative 21.7 hours Start 2024.01.19 @ 16:22:38 End 2024.01.20 @ 17:21:38 Sessions 3 Manual Loads 0 Difficulty Rogue Special Mode None Game No. 14 Rogue 14 Adventurer 0 Explorer 0 Win Type - Total 0 Types 0/0/0/0/0/0/0/0/0 Lore% 18 Gallery% 24 Achievement% 18 Wizard Run 0 Options --------- ASCII 0 Keyboard 1 Movement Numpad Keybinds 0 Fullscreen 1 Font 18/SmallcapsGlow Map View 76x50 Tactical HUD 1 Map Filters NONE Filters NONE Steam 1 RUN: b2811bd9-2c91-4635-b849-89004c28314e